bitfinex/quotes_BTCUSD_20240927
["timestamp","ask_amount","ask_price","bid_price","bid_amount"]
[1727450571645,0.72526644,66541.0,66540.0,0.47672377]
[1727450571880,1.00685948,66541.0,66540.0,0.39586149]
[1727450572120,1.15124754,66541.0,66540.0,0.39586149]
[1727450572609,1.47010439,66541.0,66540.0,0.39586149]
[1727450572831,1.48410439,66541.0,66540.0,0.09582004]
[1727450573062,1.47010439,66541.0,66540.0,0.09582004]
[1727450573408,1.34171633,66541.0,66540.0,0.09582004]
[1727450573673,0.36939,66538.0,66537.0,0.001658]
[1727450573865,0.95087557,66538.0,66537.0,0.001658]
[1727450574572,1.28373242,66538.0,66537.0,0.001658]
[1727450575074,1.29773242,66538.0,66537.0,0.001658]
[1727450575737,0.96487557,66538.0,66537.0,0.001658]
[1727450575966,0.76742705,66538.0,66537.0,0.001658]
[1727450576590,0.76942705,66538.0,66537.0,0.001658]
[1727450577287,0.75342705,66538.0,66537.0,0.001658]
[1727450577535,0.67432705,66538.0,66537.0,0.001658]
[1727450577769,0.67832705,66538.0,66537.0,0.001658]
[1727450578498,0.69732705,66538.0,66537.0,0.001658]
[1727450578811,0.57187007,66538.0,66537.0,0.001658]
[1727450579030,0.69973146,66538.0,66537.0,0.001658]
[1727450579255,0.58739638,66538.0,66537.0,0.001658]
[1727450579480,0.57339638,66538.0,66537.0,0.001658]
[1727450579717,0.43210844,66538.0,66537.0,0.001658]
[1727450579945,0.11093166,66538.0,66537.0,0.001658]
[1727450580181,0.04352631,66538.0,66537.0,0.083358]
[1727450580412,0.01552631,66538.0,66537.0,0.083358]
[1727450580641,0.04352631,66538.0,66537.0,0.083358]
[1727450580870,0.17981631,66538.0,66537.0,0.083358]
[1727450581106,0.16581631,66538.0,66537.0,0.083358]
[1727450581360,0.17181631,66538.0,66537.0,0.083358]
[1727450581586,0.22175344,66538.0,66537.0,0.083358]
[1727450582015,0.22175344,66538.0,66537.0,0.001658]
[1727450582215,0.17181631,66538.0,66537.0,0.001658]
[1727450582731,0.16581631,66538.0,66537.0,0.001658]
[1727450582962,0.24122852,66538.0,66537.0,0.001658]
[1727450583196,0.17381631,66538.0,66537.0,0.001658]
[1727450583426,0.4999687,66538.0,66537.0,0.001658]
[1727450583657,0.40743647,66538.0,66537.0,0.001658]
[1727450583941,0.51975775,66538.0,66537.0,0.001658]
[1727450584169,0.50030543,66538.0,66537.0,0.001658]
[1727450584420,0.50930543,66538.0,66537.0,0.001658]
[1727450584654,0.40391016,66538.0,66537.0,0.001658]
[1727450584902,0.4194662,66538.0,66537.0,0.001658]
[1727450586273,0.38152937,66538.0,66537.0,0.001658]
[1727450586558,0.38152937,66538.0,66537.0,0.60282]
[1727450586559,0.2691762,66538.0,66537.0,0.60282]
[1727450586797,0.2691762,66538.0,66537.0,0.452528]
[1727450587063,0.2691762,66538.0,66537.0,0.60282]
[1727450587305,0.4194662,66538.0,66537.0,0.452528]
[1727450587815,0.4194662,66538.0,66537.0,0.60282]
[1727450587816,0.35905196,66538.0,66537.0,0.60282]
[1727450588057,0.34399614,66538.0,66537.0,0.69882]
[1727450588301,0.35939556,66538.0,66537.0,0.548528]
[1727450588781,0.2695198,66538.0,66537.0,0.69882]
[1727450589026,0.03458037,66538.0,66537.0,0.69882]
[1727450589253,0.07952853,66538.0,66537.0,0.69882]
[1727450589713,0.03458037,66538.0,66537.0,0.69882]
[1727450590178,0.03458037,66538.0,66537.0,0.548528]
[1727450590179,0.09300139,66538.0,66537.0,0.548528]
[1727450590444,0.43268033,66538.0,66537.0,0.548528]
[1727450590679,0.36891724,66538.0,66537.0,0.548528]
[1727450590908,0.34347748,66538.0,66537.0,0.69882]
[1727450591375,0.08801955,66538.0,66537.0,0.69882]
[1727450591700,0.02058037,66538.0,66537.0,0.69882]
[1727450591786,0.10849378,66538.0,66537.0,0.69882]
[1727450592029,0.34851115,66538.0,66537.0,0.548528]
[1727450592261,0.34849529,66538.0,66537.0,0.69882]
[1727450592742,0.49578529,66538.0,66537.0,0.548528]
[1727450592969,0.50478529,66538.0,66537.0,0.548528]
[1727450593197,0.49578529,66538.0,66537.0,0.548528]
[1727450593644,0.50178529,66538.0,66537.0,0.548528]
[1727450594636,0.35149529,66538.0,66537.0,0.548528]
[1727450594922,0.35138782,66538.0,66537.0,0.548528]
[1727450595161,0.35138802,66538.0,66537.0,0.548528]
[1727450595668,0.33591492,66538.0,66537.0,0.548528]
[1727450595940,0.33591492,66538.0,66537.0,0.69882]
[1727450596208,0.07846787,66538.0,66537.0,0.69882]
[1727450596724,0.011,66538.0,66537.0,0.69882]
[1727450596937,0.07846536,66538.0,66537.0,0.69882]
[1727450597166,0.011,66538.0,66537.0,0.69882]
[1727450597403,0.10095382,66538.0,66537.0,0.69882]
[1727450597637,0.33594191,66538.0,66537.0,0.548528]
[1727450597877,0.011,66538.0,66537.0,0.548528]
[1727450598123,0.011,66538.0,66537.0,0.69882]
[1727450598369,0.22873847,66538.0,66537.0,0.548528]
[1727450598602,0.07845006,66538.0,66537.0,0.548528]
[1727450598841,0.05596904,66538.0,66537.0,0.69882]
[1727450599332,0.01070777,66538.0,66537.0,0.69882]
[1727450601216,0.01070777,66538.0,66537.0,1.39882]
[1727450601677,0.07818185,66538.0,66537.0,1.39882]
[1727450602633,0.07818185,66538.0,66537.0,1.39697989]
[1727450603777,0.07818185,66538.0,66537.0,1.24668789]
[1727450604019,0.07818185,66538.0,66537.0,1.39697989]
[1727450604020,0.01070777,66538.0,66537.0,1.39697989]
[1727450604488,0.01070777,66538.0,66537.0,1.24668789]
[1727450604722,0.01070777,66538.0,66537.0,1.39697989]
[1727450604965,0.01070777,66538.0,66537.0,0.54668789]
[1727450605205,0.01070777,66538.0,66537.0,0.69863789]
[1727450608737,0.01070777,66538.0,66537.0,1.39863789]
[1727450608992,0.01070777,66538.0,66537.0,1.24834589]
[1727450609232,0.01070777,66538.0,66537.0,0.69863789]
[1727450609728,0.01070777,66538.0,66537.0,0.54834589]
[1727450609965,0.09366667,66538.0,66537.0,0.69863789]
[1727450610927,0.07814804,66538.0,66537.0,0.69863789]
[1727450612140,0.09363751,66538.0,66537.0,0.69863789]
[1727450612600,0.09363663,66538.0,66537.0,0.69863789]
[1727450613092,0.07814804,66538.0,66537.0,0.69863789]
[1727450613814,0.07814804,66538.0,66537.0,0.54834589]
[1727450614054,0.07814804,66538.0,66537.0,0.69863789]
[1727450615252,0.07814804,66538.0,66537.0,0.54834589]
[1727450615495,0.07814804,66538.0,66537.0,1.24834589]
[1727450615719,0.07814804,66538.0,66537.0,1.39863789]
[1727450615957,0.07814804,66538.0,66537.0,0.69863789]
[1727450616222,0.0781043,66538.0,66537.0,0.69863789]
[1727450618181,0.0781043,66538.0,66537.0,0.54834589]
[1727450618434,0.0781043,66538.0,66537.0,0.69863789]
[1727450618690,0.33565095,66538.0,66537.0,0.69863789]
[1727450618939,0.33565095,66538.0,66537.0,1.39863789]
[1727450619397,0.33565095,66538.0,66537.0,1.24834589]
[1727450619641,0.24578891,66538.0,66537.0,1.24834589]
[1727450619894,0.24518269,66538.0,66537.0,1.39863789]
[1727450620590,0.35751025,66538.0,66537.0,1.39863789]
[1727450621534,0.24518269,66538.0,66537.0,1.39863789]
[1727450622981,0.24518269,66538.0,66537.0,0.69863789]
[1727450623699,0.24518269,66538.0,66537.0,0.54834589]
[1727450623938,0.6128279,66538.0,66537.0,0.45234589]
[1727450624173,0.52107364,66538.0,66537.0,0.45234589]
[1727450625541,0.66918028,66538.0,66537.0,0.45234589]
[1727450625774,0.39781888,66538.0,66537.0,0.45234589]
[1727450626005,0.45694869,66538.0,66537.0,0.45234589]
[1727450626236,0.39981888,66538.0,66537.0,0.45234589]
[1727450627158,0.39781888,66538.0,66537.0,0.45234589]
[1727450627659,0.55084709,66538.0,66537.0,0.45234589]
[1727450628369,0.56184709,66538.0,66537.0,0.45234589]
[1727450628864,0.62704217,66538.0,66537.0,0.45234589]
[1727450629327,0.78933011,66538.0,66537.0,0.45234589]
[1727450629558,0.77833011,66538.0,66537.0,0.45234589]
[1727450629793,0.76433011,66538.0,66537.0,0.45234589]
[1727450630109,0.77833011,66538.0,66537.0,0.45234589]
[1727450630215,0.79433011,66538.0,66537.0,0.45234589]
[1727450630486,0.96387628,66538.0,66537.0,0.45234589]
[1727450630721,0.8704834,66538.0,66537.0,0.45234589]
[1727450631216,0.88606415,66538.0,66537.0,0.45234589]
[1727450631914,0.87206415,66538.0,66537.0,0.45234589]
[1727450632132,0.88606415,66538.0,66537.0,0.45234589]
[1727450632591,0.85806415,66538.0,66537.0,0.45234589]
[1727450632826,0.87206415,66538.0,66537.0,0.45234589]
[1727450633062,0.88606415,66538.0,66537.0,0.45234589]
[1727450633972,0.8860834,66538.0,66537.0,0.45234589]
[1727450635351,0.8858254,66538.0,66537.0,0.45234589]
[1727450636271,0.8702254,66538.0,66537.0,0.45234589]
[1727450636527,0.87019913,66538.0,66537.0,0.45234589]
[1727450637230,0.88569833,66538.0,66537.0,0.45234589]
[1727450638416,0.88369833,66538.0,66537.0,0.45234589]
[1727450638645,0.88570257,66538.0,66537.0,0.45234589]
[1727450639330,0.88554461,66538.0,66537.0,0.45234589]
[1727450640008,0.88354461,66538.0,66537.0,0.45234589]
[1727450640714,0.84042977,66538.0,66537.0,0.45234589]
[1727450641385,0.82492633,66538.0,66537.0,0.45234589]
[1727450642080,0.82292633,66538.0,66537.0,0.45234589]
[1727450642303,0.83846385,66538.0,66537.0,0.45234589]
[1727450642533,0.88549393,66538.0,66537.0,0.45234589]
[1727450642831,0.90849393,66538.0,66537.0,0.45234589]
[1727450643056,0.90853393,66538.0,66537.0,0.45234589]
[1727450643742,0.87153393,66538.0,66537.0,0.45234589]
[1727450644203,0.99239258,66538.0,66537.0,0.45234589]
[1727450644695,0.82650385,66538.0,66537.0,0.45234589]
[1727450645145,0.96438948,66538.0,66537.0,0.45234589]
[1727450645421,0.97838894,66538.0,66537.0,0.45234589]
[1727450646108,0.99238894,66538.0,66537.0,0.45234589]
[1727450646336,0.88552896,66538.0,66537.0,0.45234589]
[1727450647500,0.97685232,66538.0,66537.0,0.45234589]
[1727450647729,0.74676633,66538.0,66537.0,0.45234589]
[1727450647983,0.74476633,66538.0,66537.0,0.45234589]
[1727450648671,0.89865232,66538.0,66537.0,0.45234589]
[1727450648897,0.79179752,66538.0,66537.0,0.45234589]
[1727450649179,0.87209752,66538.0,66537.0,0.45234589]
[1727450649605,0.89509752,66538.0,66537.0,0.45234589]
[1727450651135,0.87209752,66538.0,66537.0,0.45234589]
[1727450651364,1.02396912,66538.0,66537.0,0.45234589]
[1727450651585,0.87009752,66538.0,66537.0,0.45234589]
[1727450651804,0.87209752,66538.0,66537.0,0.45234589]
[1727450652043,0.87009752,66538.0,66537.0,0.45234589]
[1727450652271,0.9416724,66538.0,66537.0,0.45234589]
[1727450652502,0.94167469,66538.0,66537.0,0.45234589]
[1727450655282,0.94367469,66538.0,66537.0,0.45234589]
[1727450655785,0.89377953,66538.0,66537.0,0.45234589]
[1727450656019,0.81480273,66538.0,66537.0,0.45234589]
[1727450656259,0.89580273,66538.0,66537.0,0.45234589]
[1727450656720,0.86780273,66538.0,66537.0,0.45234589]
[1727450656953,0.88180273,66538.0,66537.0,0.45234589]
[1727450657198,0.86780273,66538.0,66537.0,0.45234589]
[1727450657693,0.89580273,66538.0,66537.0,0.45234589]
[1727450658205,0.88180273,66538.0,66537.0,0.45234589]
[1727450658437,0.88180273,66538.0,66523.0,0.001658]
[1727450658438,0.157321,66524.0,66523.0,0.001658]
[1727450658680,0.54744517,66524.0,66523.0,0.001658]
[1727450658913,0.54580684,66524.0,66523.0,0.001658]
[1727450659138,0.69084593,66524.0,66523.0,0.001658]
[1727450659372,0.150353,66510.0,66509.0,0.22590191]
[1727450659605,0.32263245,66510.0,66509.0,0.22590191]
[1727450659843,0.32263245,66510.0,66506.0,0.0912]
[1727450659844,0.15036,66507.0,66506.0,0.0912]
[1727450660073,0.47522011,66507.0,66506.0,0.0912]
[1727450660319,0.3835579,66507.0,66506.0,0.0912]
[1727450660564,0.150371,66502.0,66501.0,0.001658]
[1727450660808,0.47793839,66502.0,66501.0,0.001658]
[1727450661052,0.85242166,66502.0,66501.0,0.001658]
[1727450661282,0.72789038,66502.0,66501.0,0.001658]
[1727450661999,0.73281581,66502.0,66501.0,0.001658]
[1727450662237,0.75089038,66502.0,66501.0,0.001658]
[1727450662943,0.76389038,66502.0,66501.0,0.001658]
[1727450663185,0.75089038,66502.0,66501.0,0.001658]
[1727450663425,0.92127844,66502.0,66501.0,0.001658]
[1727450663705,1.02127844,66502.0,66501.0,0.001658]
[1727450663954,1.02127844,66502.0,66491.0,0.001658]
[1727450663955,0.34504809,66492.0,66491.0,0.001658]
[1727450664200,0.00675409,66486.0,66485.0,0.22590191]
[1727450664436,0.74092638,66486.0,66485.0,0.22590191]
[1727450664669,0.74092638,66486.0,66474.0,0.0912]
[1727450664670,0.150423,66479.0,66474.0,0.0912]
[1727450664943,0.52450502,66479.0,66474.0,0.0912]
[1727450665223,0.150432,66475.0,66474.0,0.0912]
[1727450665506,0.17818809,66474.0,66473.0,0.001658]
[1727450665753,0.56630629,66474.0,66473.0,0.001658]
[1727450665987,0.82605602,66474.0,66473.0,0.001658]
[1727450666486,0.01675409,66470.0,66469.0,0.001658]
[1727450666735,0.01675409,66470.0,66456.0,0.22590191]
[1727450666736,0.46248854,66465.0,66456.0,0.22590191]
[1727450666981,0.46250654,66457.0,66456.0,0.22590191]
[1727450667217,0.83947344,66457.0,66456.0,0.22590191]
[1727450667478,0.150498,66446.0,66438.0,0.32090191]
[1727450667723,0.30578594,66446.0,66438.0,0.32090191]
[1727450667960,0.47326745,66448.0,66438.0,0.32090191]
[1727450667961,0.17227945,66448.0,66438.0,0.32090191]
[1727450668210,0.15528794,66447.0,66438.0,0.32090191]
[1727450668478,0.30096,66454.0,66438.0,0.32090191]
[1727450668717,0.15528794,66453.0,66442.0,0.00024591]
[1727450668957,0.22590191,66456.0,66445.0,0.00024591]
[1727450669210,0.70910036,66463.0,66441.0,0.301014]
[1727450669211,0.22590191,66463.0,66448.0,0.00024591]
[1727450669450,0.22590191,66463.0,66452.0,0.00024591]
[1727450669451,0.38118985,66463.0,66452.0,0.00024591]
[1727450669693,0.014,66454.0,66452.0,0.15072991]
[1727450669938,0.38118985,66463.0,66452.0,0.15072991]
[1727450670413,0.014,66463.0,66460.0,0.00024591]
[1727450670640,0.22590191,66462.0,66460.0,0.00024591]
[1727450670868,0.014,66463.0,66460.0,0.00024591]
[1727450671099,0.014,66463.0,66460.0,0.15071191]
[1727450671369,0.014,66463.0,66461.0,0.150463]
[1727450671370,0.028,66463.0,66461.0,0.150463]
[1727450671598,0.028,66463.0,66460.0,0.00024591]
[1727450671832,0.028,66463.0,66460.0,0.15071091]
[1727450672070,0.028,66463.0,66458.0,0.150469]
[1727450672306,0.028,66463.0,66457.0,0.0974]
[1727450672535,0.39818136,66472.0,66460.0,0.00024591]
[1727450672536,0.69906036,66472.0,66460.0,0.00024591]
[1727450672763,0.005,66463.0,66462.0,0.150461]
[1727450672990,0.005,66463.0,66462.0,0.601851]
[1727450673220,0.38118985,66472.0,66462.0,0.45139]
[1727450673472,0.008,66463.0,66462.0,0.45139]
[1727450673693,0.38118985,66472.0,66462.0,0.45139]
[1727450673920,0.150445,66470.0,66462.0,0.45139]
[1727450674161,0.004,66463.0,66462.0,0.45139]
[1727450674406,0.007,66463.0,66462.0,0.60268]
[1727450674683,0.007,66463.0,66462.0,0.452219]
[1727450674912,0.007,66463.0,66462.0,0.60268]
[1727450675402,0.007,66463.0,66462.0,0.60292591]
[1727450675403,0.003,66463.0,66462.0,0.60292591]
[1727450675630,0.22590191,66472.0,66471.0,0.15068691]
[1727450675856,0.22590191,66472.0,66471.0,0.42186636]
[1727450676092,0.22590191,66479.0,66478.0,0.150425]
[1727450676336,0.22590191,66479.0,66478.0,0.601705]
[1727450676571,0.22590191,66488.0,66482.0,0.00024591]
[1727450676798,0.22590191,66488.0,66487.0,0.150405]
[1727450677031,0.22590191,66488.0,66487.0,0.694825]
[1727450677272,0.230656,66500.0,66489.0,0.300801]
[1727450677273,0.150383,66497.0,66489.0,0.300801]
[1727450677507,0.22590191,66493.0,66490.0,0.4512]
[1727450677740,0.32267545,66491.0,66490.0,0.4512]
[1727450677972,0.48471748,66491.0,66490.0,0.4512]
[1727450678427,0.48271748,66491.0,66490.0,0.4512]
[1727450678892,0.30568394,66491.0,66490.0,0.4512]
[1727450679352,0.31968394,66491.0,66490.0,0.4512]
[1727450679583,0.005,66499.0,66490.0,0.4512]
[1727450679819,0.014,66491.0,66490.0,0.4512]
[1727450680055,0.026,66491.0,66490.0,0.4512]
[1727450680529,0.014,66491.0,66490.0,0.693698]
[1727450680779,0.014,66499.0,66495.0,0.150385]
[1727450681018,0.014,66499.0,66490.0,0.5433]
[1727450681019,0.014,66499.0,66498.0,0.15062591]
[1727450681253,0.014,66499.0,66498.0,0.60176591]
[1727450682203,0.22590191,66503.0,66501.0,0.150372]
[1727450682446,0.22590191,66503.0,66499.0,0.150376]
[1727450682674,0.37627091,66503.0,66502.0,0.45111]
[1727450682913,0.150369,66503.0,66502.0,0.45111]
[1727450683934,0.157369,66503.0,66502.0,0.45111]
[1727450685375,0.16900733,66503.0,66502.0,0.45111]
[1727450685610,0.33229527,66503.0,66502.0,0.45111]
[1727450685850,0.33065694,66503.0,66502.0,0.45111]
[1727450686293,0.33231694,66503.0,66502.0,0.45111]
[1727450686566,0.30731694,66503.0,66502.0,0.45111]
[1727450686818,0.31531694,66503.0,66502.0,0.45111]
[1727450687080,0.32695527,66503.0,66502.0,0.45111]
[1727450687333,0.31531694,66503.0,66502.0,0.45111]
[1727450688254,0.30731694,66503.0,66502.0,0.45111]
[1727450688490,0.32131694,66503.0,66502.0,0.45111]
[1727450688751,0.30731694,66503.0,66502.0,0.45111]
[1727450688979,0.65943723,66503.0,66502.0,0.45111]
[1727450689237,0.36507103,66503.0,66502.0,0.45111]
[1727450689978,0.33707103,66503.0,66502.0,0.45111]
[1727450690212,0.44707103,66503.0,66502.0,0.45111]
[1727450690440,0.44707103,66503.0,66480.0,0.22590191]
[1727450690441,0.150418,66481.0,66480.0,0.22590191]
[1727450690672,0.30570594,66481.0,66480.0,0.22590191]
[1727450690919,0.30570594,66481.0,66469.0,0.0927]
[1727450690920,0.150434,66474.0,66469.0,0.0927]
[1727450691412,0.150443,66470.0,66469.0,0.0927]
[1727450691632,0.15208133,66470.0,66469.0,0.0927]
[1727450692107,0.56598488,66470.0,66469.0,0.0927]
[1727450692364,0.150459,66463.0,66462.0,0.000829]
[1727450692655,0.300909,66466.0,66459.0,0.22590191]
[1727450692656,0.150462,66462.0,66459.0,0.22271691]
[1727450692918,0.00163833,66465.0,66459.0,0.150468]
[1727450692919,0.300912,66465.0,66459.0,0.150468]
[1727450693177,0.300912,66465.0,66458.0,0.0939]
[1727450693442,0.150458,66464.0,66460.0,0.150465]
[1727450693748,0.300912,66465.0,66458.0,0.0939]
[1727450694028,0.150461,66463.0,66458.0,0.24437]
[1727450694298,0.15528794,66469.0,66458.0,0.0939]
[1727450694559,0.150464,66461.0,66458.0,0.0939]
[1727450694812,0.15046,66463.0,66458.0,0.24437]
[1727450695073,0.007,66462.0,66458.0,0.0939]
[1727450695327,0.15046,66463.0,66459.0,0.601868]
[1727450695604,0.005,66462.0,66459.0,0.601868]
[1727450695835,0.005,66462.0,66460.0,0.150466]
[1727450696079,0.22590191,66467.0,66461.0,0.601853]
[1727450696348,0.150461,66462.0,66461.0,0.45139]
[1727450696619,0.155461,66462.0,66461.0,0.45139]
[1727450696846,0.156461,66462.0,66461.0,0.45139]
[1727450697842,0.006,66462.0,66461.0,0.45139]
[1727450698101,0.15528794,66467.0,66463.0,0.150458]
[1727450698102,0.150451,66467.0,66463.0,0.150458]
[1727450698364,0.014,66467.0,66465.0,0.150452]
[1727450698609,0.22590191,66474.0,66464.0,0.45137]
[1727450698610,0.300879,66472.0,66464.0,0.45137]
[1727450698855,0.30573094,66471.0,66466.0,0.60181]
[1727450699101,0.15528794,66471.0,66466.0,0.44951726]
[1727450699337,0.15528794,66471.0,66466.0,0.44752078]
[1727450699573,0.15745,66467.0,66466.0,0.44752078]
[1727450699806,0.15945,66467.0,66466.0,0.44752078]
[1727450700277,0.300893,66469.0,66466.0,0.44752078]
[1727450700278,0.150446,66469.0,66466.0,0.44752078]
[1727450700536,0.300847,66479.0,66469.0,0.00024591]
[1727450700763,0.22590191,66482.0,66472.0,0.00024591]
[1727450700989,0.22590191,66475.0,66473.0,0.605586]
[1727450701223,0.300841,66481.0,66473.0,0.45515]
[1727450701483,0.150425,66479.0,66474.0,0.150432]
[1727450701737,0.150434,66474.0,66473.0,0.45515]
[1727450702170,0.150434,66474.0,66470.0,0.0925]
[1727450702171,0.15043,66476.0,66475.0,0.003841]
[1727450702410,0.17818409,66476.0,66475.0,0.003841]
[1727450702654,0.18018409,66476.0,66475.0,0.003841]
[1727450702892,0.59408764,66476.0,66475.0,0.003841]
[1727450703128,0.67068764,66476.0,66475.0,0.003841]
[1727450703390,0.71538571,66476.0,66475.0,0.003841]
[1727450704442,0.82407846,66476.0,66475.0,0.003841]
[1727450704702,0.99658955,66476.0,66475.0,0.003841]
[1727450704954,0.78961279,66476.0,66475.0,0.003841]
[1727450705201,1.02702832,66476.0,66475.0,0.003841]
[1727450705682,0.99902832,66476.0,66475.0,0.003841]
[1727450705916,1.02302832,66476.0,66475.0,0.003841]
[1727450706159,1.17941638,66476.0,66475.0,0.003841]
[1727450706393,1.17941638,66476.0,66461.0,0.000829]
[1727450706394,0.4368307,66462.0,66461.0,0.000829]
[1727450706659,0.59411864,66462.0,66461.0,0.000829]
[1727450706937,0.90543111,66462.0,66461.0,0.000829]
[1727450707185,1.27394945,66462.0,66461.0,0.000829]
[1727450707436,1.16177943,66462.0,66461.0,0.000829]
[1727450707675,1.16126158,66462.0,66461.0,0.000829]
[1727450708584,1.27340488,66462.0,66461.0,0.000829]
[1727450709035,1.28740488,66462.0,66461.0,0.000829]
[1727450709329,1.16126158,66462.0,66461.0,0.000829]
[1727450709578,0.5488517,66453.0,66452.0,0.00083]
[1727450709818,0.92468353,66453.0,66452.0,0.00083]
[1727450710299,1.15058544,66453.0,66452.0,0.00083]
[1727450710517,1.15058544,66453.0,66434.0,0.001658]
[1727450710518,0.4388927,66435.0,66434.0,0.001658]
[1727450710764,0.63898329,66435.0,66434.0,0.001658]
[1727450711481,0.59418064,66435.0,66434.0,0.001658]
[1727450711709,0.59895882,66435.0,66434.0,0.001658]
[1727450712205,0.65773377,66435.0,66434.0,0.001658]
[1727450712428,0.93962728,66435.0,66434.0,0.001658]
[1727450712652,0.80923922,66435.0,66434.0,0.001658]
[1727450712889,0.7644929,66435.0,66434.0,0.001658]
[1727450713170,0.7404929,66435.0,66434.0,0.001658]
[1727450713419,0.7504929,66435.0,66434.0,0.001658]
[1727450713650,0.7664929,66435.0,66434.0,0.001658]
[1727450713884,0.6564929,66435.0,66434.0,0.001658]
[1727450714113,0.6264929,66435.0,66434.0,0.001658]
[1727450714345,0.3771232,66435.0,66434.0,0.001658]
[1727450714565,0.3631232,66435.0,66434.0,0.001658]
[1727450714781,0.3401232,66435.0,66434.0,0.001658]
[1727450715003,0.3541232,66435.0,66434.0,0.001658]
[1727450715699,0.33858912,66435.0,66434.0,0.001658]
[1727450715932,0.35418938,66435.0,66434.0,0.001658]
[1727450716156,0.04360026,66435.0,66434.0,0.001658]
[1727450716378,0.19412326,66435.0,66434.0,0.001658]
[1727450716851,0.18012326,66435.0,66434.0,0.001658]
[1727450717334,0.19412326,66435.0,66434.0,0.001658]
[1727450717550,0.19576159,66435.0,66434.0,0.001658]
[1727450717777,0.18176159,66435.0,66434.0,0.001658]
[1727450718240,0.19412326,66435.0,66434.0,0.001658]
[1727450718461,0.16612326,66435.0,66434.0,0.001658]
[1727450718686,0.17812326,66435.0,66434.0,0.001658]
[1727450719155,0.02760026,66435.0,66434.0,0.15242891]
[1727450719386,0.150498,66446.0,66441.0,0.150508]
[1727450719709,0.22590191,66450.0,66443.0,0.00024591]
[1727450719976,0.150491,66449.0,66448.0,0.0901]
[1727450720231,0.22590191,66450.0,66448.0,0.0901]
[1727450720474,0.150491,66449.0,66448.0,0.0901]
[1727450720999,0.150514,66439.0,66438.0,0.0932]
[1727450721476,0.30580194,66439.0,66438.0,0.0932]
[1727450722885,0.012,66439.0,66438.0,0.24496191]
[1727450723878,0.012,66439.0,66438.0,0.32547197]
[1727450724142,0.22590191,66454.0,66450.0,0.0929]
[1727450724391,0.22590191,66454.0,66450.0,0.243388]
[1727450724682,0.22590191,66454.0,66451.0,0.150486]
[1727450724931,0.00489742,66462.0,66451.0,0.150486]
[1727450725136,0.150467,66460.0,66452.0,0.150483]
[1727450725381,0.013,66454.0,66450.0,0.0939]
[1727450725619,0.37636791,66461.0,66453.0,0.150482]
[1727450725906,0.30575594,66460.0,66453.0,0.150482]
[1727450726157,0.004,66454.0,66453.0,0.150482]
[1727450726631,0.003,66454.0,66452.0,0.150483]
[1727450726904,0.38282818,66453.0,66450.0,0.0929]
[1727450727151,0.38282818,66453.0,66445.0,0.150499]
[1727450727152,0.150487,66451.0,66445.0,0.150499]
[1727450727407,0.300985,66449.0,66441.0,0.47190991]
[1727450727678,0.60676994,66448.0,66441.0,0.0955]
[1727450727927,0.150501,66445.0,66441.0,0.0955]
[1727450728161,0.30578094,66448.0,66443.0,0.150504]
[1727450728397,0.30578094,66448.0,66444.0,0.150502]
[1727450728636,0.15528794,66448.0,66441.0,0.0955]
[1727450728895,0.15528794,66448.0,66443.0,0.301009]
[1727450729196,0.300967,66453.0,66441.0,0.09574591]
[1727450729441,0.004,66445.0,66444.0,0.150502]
[1727450729943,0.38118985,66452.0,66449.0,0.150489]
[1727450730188,0.53167485,66452.0,66448.0,0.150492]
[1727450730441,0.53167485,66452.0,66449.0,0.43547]
[1727450730442,0.150488,66451.0,66449.0,0.43547]
[1727450730672,0.30577394,66451.0,66449.0,0.43547]
[1727450731130,0.15528794,66451.0,66449.0,0.43547]
[1727450731354,0.01574398,66450.0,66449.0,0.43547]
[1727450731595,0.01574398,66450.0,66449.0,0.58620691]
[1727450731828,0.01574398,66450.0,66449.0,0.94022252]
[1727450732065,0.01574398,66450.0,66449.0,1.01972252]
[1727450732323,0.01574398,66450.0,66449.0,1.02072252]
[1727450732589,0.007,66451.0,66450.0,0.32286114]
[1727450732833,0.22590191,66462.0,66461.0,0.14990648]
[1727450733079,0.22590191,66462.0,66461.0,0.78966862]
[1727450733545,0.01,66469.0,66468.0,0.150448]
[1727450733775,0.01,66469.0,66468.0,0.617798]
[1727450734502,0.22755991,66474.0,66468.0,0.617798]
[1727450734503,0.22590191,66473.0,66468.0,0.46735]
[1727450734763,0.22590191,66473.0,66472.0,0.150439]
[1727450734999,0.001658,66474.0,66473.0,0.150437]
[1727450735233,0.001658,66474.0,66473.0,0.617747]
[1727450735478,0.001658,66474.0,66473.0,0.46731]
[1727450735724,0.001658,66474.0,66473.0,0.617747]
[1727450735966,0.001658,66474.0,66473.0,0.46731]
[1727450736932,0.37799391,66474.0,66473.0,0.46731]
[1727450737174,0.152092,66474.0,66473.0,0.46731]
[1727450737861,0.001658,66474.0,66473.0,0.617747]
[1727450738093,0.001658,66474.0,66473.0,0.46731]
[1727450738316,0.001658,66474.0,66473.0,0.617747]
[1727450738541,0.001658,66474.0,66473.0,0.46731]
[1727450738808,0.152092,66474.0,66473.0,0.46731]
[1727450739033,0.001658,66474.0,66473.0,0.46731]
[1727450740968,0.152092,66474.0,66473.0,0.46731]
[1727450741189,0.001658,66474.0,66473.0,0.46731]
[1727450742382,0.001658,66474.0,66473.0,0.617747]
[1727450742867,0.001658,66474.0,66473.0,0.694947]
[1727450743102,0.00136587,66474.0,66473.0,0.694947]
[1727450743339,0.15179987,66474.0,66473.0,0.46731]
[1727450744336,0.15179987,66474.0,66473.0,0.47131]
[1727450744571,0.16742882,66474.0,66473.0,0.47131]
[1727450744816,0.16742882,66474.0,66473.0,0.47431]
[1727450745046,0.16742882,66474.0,66473.0,0.47031]
[1727450745756,0.16742882,66474.0,66473.0,0.44737346]
[1727450746241,0.16742882,66474.0,66473.0,0.44437346]
[1727450747458,0.01699482,66474.0,66473.0,0.44437346]
[1727450747695,0.01699482,66474.0,66473.0,0.59481046]
[1727450748130,0.01699482,66474.0,66473.0,0.44437346]
[1727450749099,0.16742882,66474.0,66473.0,0.44437346]
[1727450750538,0.01699482,66474.0,66473.0,0.44437346]
[1727450751990,0.16742882,66474.0,66473.0,0.44437346]
[1727450752467,0.01699482,66474.0,66473.0,0.44437346]
[1727450752690,0.16742882,66474.0,66473.0,0.44437346]
[1727450752918,0.01699482,66474.0,66473.0,0.44437346]